fUSD/lending_fUSD_20240406
["ID","MTS","AMOUNT","RATE_DAILY","PERIOD"]
[321711676,1712428248463,-1825.01,0.00021917,2]
[321711677,1712428248473,-1825.01,0.00021917,2]
[321711678,1712428248482,-1825.01,0.00021917,2]
[321711679,1712428248492,-1825.01,0.00021917,2]
[321711680,1712428248503,-1825.01,0.00021917,2]
[321711681,1712428248512,-1825.01,0.00021917,2]
[321711682,1712428248522,-500.0,0.00021917,2]
[321711683,1712428248531,-1825.01,0.00021917,2]
[321711684,1712428248541,-500.0,0.00021917,2]
[321711685,1712428248551,-500.0,0.00021917,2]
[321711686,1712428248560,-1825.01,0.00021917,2]
[321711687,1712428248569,-500.0,0.00021917,2]
[321711688,1712428248579,-582.32751044,0.00021917,2]
[321711689,1712428248589,-527.19050879,0.00021917,2]
[321711690,1712428248598,-500.0,0.00021917,2]
[321711691,1712428248607,-500.0,0.00021917,2]
[321711692,1712428248616,-500.0,0.00021917,2]
[321711693,1712428248626,-500.0,0.00021917,2]
[321711694,1712428248635,-428.2,0.00021917,2]
[321711695,1712428248644,-500.0,0.00021917,2]
[321711696,1712428248653,-500.00478523,0.00021917,2]
[321711697,1712428248663,-500.0,0.00021917,2]
[321711698,1712428248673,-520.72,0.00021917,2]
[321711699,1712428248682,-500.0,0.00021917,2]
[321711700,1712428248692,-500.0,0.00021917,2]
[321711701,1712428248701,-500.0,0.00021917,2]
[321711702,1712428248710,-500.0,0.00021917,2]
[321711703,1712428248719,-583.07,0.00021917,2]
[321711704,1712428248728,-500.0,0.00021917,2]
[321711705,1712428248737,-500.0,0.00021917,2]
[321711706,1712428248746,-500.0,0.00021917,2]
[321711707,1712428248756,-594.14,0.00021917,2]
[321711708,1712428248765,-500.0,0.00021917,2]
[321711709,1712428248774,-594.14,0.00021917,2]
[321711710,1712428248783,-560.26,0.00021917,2]
[321711711,1712428248793,-594.14,0.00021917,2]
[321711712,1712428248802,-594.14,0.00021917,2]
[321711713,1712428248812,-594.14,0.00021917,2]
[321711714,1712428248822,-594.14,0.00021917,2]
[321711715,1712428248831,-594.14,0.00021917,2]
[321711716,1712428248840,-594.14,0.00021917,2]
[321711717,1712428248849,-500.0,0.00021917,2]
[321711718,1712428248858,-500.0,0.00021917,2]
[321711719,1712428248867,-500.0,0.00021917,2]
[321711720,1712428248876,-500.0,0.00021917,2]
[321711721,1712428248885,-500.0,0.00021917,2]
[321711722,1712428248894,-500.0,0.00021917,2]
[321711723,1712428248904,-500.0,0.00021917,2]
[321711724,1712428248913,-506.52,0.00021917,2]
[321711725,1712428248923,-500.0,0.00021917,2]
[321711726,1712428248932,-500.0,0.00021917,2]
[321711727,1712428248941,-500.0,0.00021917,2]
[321711728,1712428248950,-500.0,0.00021917,2]
[321711729,1712428248959,-199.70631437,0.00021917,2]
[321711730,1712428248969,-500.0,0.00021917,2]
[321711731,1712428248978,-527.92,0.00021917,2]
[321711732,1712428248987,-540.9,0.00021917,2]
[321711733,1712428248997,-500.0,0.00021917,2]
[321711734,1712428249007,-500.0,0.00021917,2]
[321711735,1712428249016,-500.0,0.00021917,2]
[321711736,1712428249026,-500.0,0.00021917,2]
[321711737,1712428249035,-535.44745295,0.00021917,2]
[321711738,1712428249044,-500.0,0.00021917,2]
[321711739,1712428249054,-500.0,0.00021917,2]
[321711740,1712428249063,-500.0,0.00021917,2]
[321711741,1712428249073,-500.0,0.00021917,2]
[321711742,1712428249082,-500.0,0.00021917,2]
[321711743,1712428249092,-500.0,0.00021917,2]
[321711744,1712428249102,-500.0,0.00021917,2]
[321711745,1712428249111,-500.0,0.00021917,2]
[321711746,1712428249121,-500.0,0.00021917,2]
[321711747,1712428249130,-500.0,0.00021917,2]
[321711748,1712428249139,-500.0,0.00021917,2]
[321711749,1712428249148,-500.0,0.00021917,2]
[321711750,1712428249158,-500.0,0.00021917,2]
[321711751,1712428249167,-500.0,0.00021917,2]
[321711752,1712428249176,-500.0,0.00021917,2]
[321711753,1712428249185,-283.22,0.00021917,2]
[321711754,1712428249195,-500.0,0.00021917,2]
[321711755,1712428249204,-500.0,0.00021917,2]
[321711756,1712428249214,-165.01,0.00021917,2]
[321711757,1712428249223,-500.0,0.00021917,2]
[321711758,1712428249234,-500.0,0.00021917,2]
[321711759,1712428249244,-500.0,0.00021917,2]
[321711760,1712428249255,-500.0,0.00021917,2]
[321711761,1712428249265,-500.0,0.00021917,2]
[321711762,1712428249275,-500.0,0.00021917,2]
[321711763,1712428249284,-500.0,0.00021917,2]
[321711764,1712428249294,-500.0,0.00021917,2]
[321711765,1712428249305,-500.0,0.00021917,2]
[321711766,1712428249315,-403.91,0.00021917,2]
[321711767,1712428249324,-500.0,0.00021917,2]
[321711768,1712428249334,-500.0,0.00021917,2]
[321711769,1712428249344,-500.0,0.00021917,2]
[321711770,1712428249354,-500.0,0.00021917,2]
[321711771,1712428249365,-500.0,0.00021917,2]
[321711772,1712428249375,-500.0,0.00021917,2]
[321711773,1712428249385,-500.0,0.00021917,2]
[321711774,1712428249394,-500.0,0.00021917,2]
[321711775,1712428249405,-500.0,0.00021917,2]
[321711776,1712428249414,-500.0,0.00021917,2]
[321711777,1712428249424,-500.0,0.00021917,2]
[321711778,1712428249434,-365.56181668,0.00021917,2]
[321711779,1712428249444,-205.81,0.00021917,2]
[321711780,1712428249454,-500.0,0.00021917,2]
[321711781,1712428249464,-500.0,0.00021917,2]
[321711782,1712428249475,-500.0,0.00021917,2]
[321711783,1712428249489,-512.75,0.00021917,2]
[321711784,1712428249498,-500.0,0.00021917,2]
[321711785,1712428249510,-500.0,0.00021917,2]
[321711786,1712428249519,-500.0,0.00021917,2]
[321711787,1712428249529,-500.0,0.00021917,2]
[321711788,1712428249538,-798.42,0.00021917,2]
[321711789,1712428249548,-500.0,0.00021917,2]
[321711790,1712428249558,-798.42,0.00021917,2]
[321711791,1712428249567,-500.0,0.00021917,2]
[321711792,1712428249577,-798.42,0.00021917,2]
[321711793,1712428249586,-500.0,0.00021917,2]
[321711794,1712428249597,-500.0,0.00021917,2]
[321711795,1712428249607,-798.42,0.00021917,2]
[321711796,1712428249616,-500.0,0.00021917,2]
[321711797,1712428249626,-500.0,0.00021917,2]
[321711798,1712428249635,-798.42,0.00021917,2]
[321711799,1712428249644,-275.65,0.00021917,2]
[321711800,1712428249654,-500.0,0.00021917,2]
[321711801,1712428249663,-798.42,0.00021917,2]
[321711802,1712428249673,-500.0,0.00021917,2]
[321711803,1712428249682,-500.0,0.00021917,2]
[321711804,1712428249692,-798.42,0.00021917,2]
[321711805,1712428249701,-500.0,0.00021917,2]
[321711806,1712428249710,-500.0,0.00021917,2]
[321711807,1712428249718,-237.51,0.00021917,2]
[321711808,1712428249727,-798.42,0.00021917,2]
[321711809,1712428249736,-500.0,0.00021917,2]
[321711810,1712428249745,-500.0,0.00021917,2]
[321711811,1712428249755,-500.0,0.00021917,2]
[321711812,1712428249764,-500.0,0.00021917,2]
[321711813,1712428249775,-500.0,0.00021917,2]
[321711814,1712428249785,-500.0,0.00021917,2]
[321711815,1712428249794,-500.0,0.00021917,2]
[321711816,1712428249804,-500.0,0.00021917,2]
[321711817,1712428249813,-500.0,0.00021917,2]
[321711818,1712428249822,-500.0,0.00021917,2]
[321711819,1712428249832,-1358.79,0.00021917,2]
[321711820,1712428249844,-500.0,0.00021917,2]
[321711821,1712428249854,-500.0,0.00021917,2]
[321711822,1712428249864,-1358.79,0.00021917,2]
[321711823,1712428249874,-500.0,0.00021917,2]
[321711824,1712428249885,-1358.79,0.00021917,2]
[321711825,1712428249896,-1358.79,0.00021917,2]
[321711826,1712428249906,-1358.79,0.00021917,2]
[321711827,1712428249916,-1358.79,0.00021917,2]
[321711828,1712428249925,-594.69,0.00021917,2]
[321711829,1712428249936,-1358.79,0.00021917,2]
[321711830,1712428249946,-500.0,0.00021917,2]
[321711831,1712428249956,-1358.79,0.00021917,2]
[321711832,1712428249967,-500.0,0.00021917,2]
[321711833,1712428249978,-500.0,0.00021917,2]
[321711834,1712428249989,-500.0,0.00021917,2]
[321711835,1712428250000,-500.0,0.00021917,2]
[321711836,1712428250014,-500.0,0.00021917,2]
[321711837,1712428250025,-500.0,0.00021917,2]
[321711838,1712428250034,-500.0,0.00021917,2]
[321711839,1712428250043,-500.0,0.00021917,2]
[321711840,1712428250053,-500.0,0.00021917,2]
[321711841,1712428250062,-500.0,0.00021917,2]
[321711842,1712428250072,-500.0,0.00021917,2]
[321711843,1712428250081,-500.0,0.00021917,2]
[321711844,1712428250091,-196.19,0.00021917,2]
[321711845,1712428250101,-560.76,0.00021917,2]
[321711846,1712428250111,-500.0,0.00021917,2]
[321711847,1712428250120,-500.0,0.00021917,2]
[321711848,1712428250130,-500.0,0.00021917,2]
[321711849,1712428250139,-500.0,0.00021917,2]
[321711850,1712428250148,-152.24,0.00021917,2]
[321711851,1712428250157,-500.0,0.00021917,2]
[321711852,1712428250167,-220.75289724,0.00021917,2]
[321711853,1712428250176,-500.0,0.00021917,2]
[321711854,1712428250185,-500.0,0.00021917,2]
[321711855,1712428250194,-500.0,0.00021917,2]
[321711856,1712428250204,-500.0,0.00021917,2]
[321711857,1712428250213,-476.8726621,0.00021917,2]
[321711858,1712428250222,-500.0,0.00021917,2]
[321711859,1712428250232,-500.0,0.00021917,2]
[321711860,1712428250241,-500.0,0.00021917,2]
[321711861,1712428250251,-500.0,0.00021917,2]
[321711862,1712428250262,-500.0,0.00021917,2]
[321711863,1712428250272,-434.17,0.00021917,2]
[321711864,1712428250281,-613.61,0.00021917,2]
[321711865,1712428250291,-500.0,0.00021917,2]
[321711866,1712428250301,-500.0,0.00021917,2]
[321711867,1712428250310,-412.09202598,0.00021917,2]
[321711868,1712428250320,-500.0,0.00021917,2]
[321711869,1712428250330,-250.0,0.00021918,2]
[321711870,1712428250340,-500.0,0.00021918,7]
[321711871,1712428250349,-6490.46,0.00021918,2]
[321711872,1712428250358,-183.4672918,0.00021918,2]
[321711873,1712428250368,-362.6516949,0.00021984,2]
[321711874,1712428250378,-783.12017279,0.00022,2]
[321711875,1712428250388,-645.43915514,0.00022,2]
[321711876,1712428250397,-258.03,0.00022,2]
[321711877,1712428250406,-8317.69026482,0.00022013,2]
[321711878,1712428250416,-24229.97254865,0.00022015,2]
[321711879,1712428250425,-4328.42279804,0.00022039,2]
[321711880,1712428250435,-688.16436,0.0002206,2]
[321711881,1712428250445,-1708.68527016,0.00022131,2]
[321711882,1712428250455,-167.07,0.00022205,2]
[321711883,1712428250464,-362.6516949,0.00022209,2]
[321711884,1712428250474,-688.16436,0.0002222,2]
[321711885,1712428250484,-4328.42279804,0.00022325,2]
[321711886,1712428250494,-688.16436,0.0002237,2]
[321711887,1712428250504,-8317.69026482,0.00022372,2]
[321711888,1712428250514,-24229.97254865,0.00022376,2]
[321711889,1712428250524,-500.0,0.00022389,2]
[321711890,1712428250679,-861.12,0.00022389,2]
[321711891,1712428250689,-537.22,0.00022389,2]
[321711892,1712428250699,-1824.67,0.00022389,2]
[321711893,1712428250708,-1573.75,0.00022389,2]
[321711894,1712428250718,-362.6516949,0.00022433,2]
[321711895,1712428250728,-150.0,0.000225,2]
[321711896,1712428250737,-1708.68527016,0.00022509,2]
[321711897,1712428250746,-4328.42279804,0.00022611,2]
[321711898,1712428250756,-1386.0,0.0002264,2]
[321711899,1712428250766,-37500.0,0.0002264,2]
[321711900,1712428250776,-1311.0,0.0002264,2]
[321711901,1712428250785,-2458.0,0.0002264,2]
[321711902,1712428250795,-1257.0,0.0002264,2]
[321711903,1712428250804,-166.98,0.00022646,2]
[321711904,1712428250813,-362.6516949,0.00022657,2]
[321711905,1712428250823,-250.83789323,0.00022664,2]
[321711906,1712428250833,-8317.69026482,0.00022732,2]
[321711907,1712428250843,-500.0,0.00022733,2]
[321711908,1712428250853,-500.0,0.00022733,2]
[321711909,1712428250862,-24229.97254865,0.00022736,2]
[321711910,1712428250872,-800.0,0.00022767,2]
[321711911,1712428250882,-181.78316976,0.00022781,2]
[321711912,1712428250891,-290.17459473,0.00022792,2]
[321711913,1712428250901,-500.0,0.00022792,2]
[321711914,1712428250910,-10798.58360304,0.00022793,2]
[321711915,1712428250921,-1468.94,0.00022793,2]
[321711916,1712428250930,-500.0,0.00022793,2]
[321711917,1712428250939,-500.0,0.00022793,2]
[321711918,1712428250949,-861.12,0.00022793,2]
[321711919,1712428250958,-905.39,0.00022793,2]
[321711920,1712428250969,-905.39,0.00022793,2]
[321711921,1712428250978,-500.0,0.00022793,2]
[321711922,1712428250987,-677.88,0.00022793,2]
[321711923,1712428250997,-677.88,0.00022793,2]
[321711924,1712428251009,-1119.43,0.00022793,2]
[321711925,1712428251019,-500.0,0.00022793,2]
[321711926,1712428251028,-500.0,0.00022793,2]
[321711927,1712428251038,-554.57,0.00022793,2]
[321711928,1712428251047,-554.57,0.00022793,2]
[321711929,1712428251056,-2126.61,0.00022793,2]
[321711930,1712428251065,-537.22,0.00022793,2]
[321711931,1712428251075,-500.0,0.00022793,2]
[321711932,1712428251084,-500.0,0.00022793,2]
[321711933,1712428251095,-500.0,0.00022793,2]
[321711934,1712428251104,-500.0,0.00022793,2]
[321711935,1712428251114,-1824.67,0.00022793,2]
[321711936,1712428251122,-500.0,0.00022793,2]
[321711937,1712428251132,-500.0,0.00022793,2]
[321711938,1712428251141,-599.64,0.00022793,2]
[321711939,1712428251150,-599.64,0.00022793,2]
[321711940,1712428251160,-500.0,0.00022793,2]
[321711941,1712428251169,-500.0,0.00022793,2]
[321711942,1712428251178,-500.0,0.00022793,2]
[321711943,1712428251188,-1694.84,0.00022793,2]
[321711944,1712428251198,-1694.84,0.00022793,2]
[321711945,1712428251207,-1573.75,0.00022793,2]
[321711946,1712428251217,-500.0,0.00022793,2]
[321711947,1712428251226,-500.0,0.00022793,2]
[321711948,1712428251235,-254.41,0.00022793,2]
[321711949,1712428251245,-500.0,0.00022793,2]
[321711950,1712428251255,-1825.01,0.00022793,2]
[321711951,1712428251265,-1825.01,0.00022793,2]
[321711952,1712428251274,-594.14,0.00022793,2]
[321711953,1712428251284,-594.14,0.00022793,2]
[321711954,1712428251294,-500.0,0.00022793,2]
[321711955,1712428251303,-500.0,0.00022793,2]
[321711956,1712428251313,-500.0,0.00022793,2]
[321711957,1712428251322,-500.0,0.00022793,2]
[321711958,1712428251332,-798.42,0.00022793,2]
[321711959,1712428251342,-798.42,0.00022793,2]
[321711960,1712428251351,-500.0,0.00022793,2]
[321711961,1712428251361,-1358.79,0.00022793,2]
[321711962,1712428251370,-1358.79,0.00022793,2]
[321711963,1712428251380,-500.0,0.00022793,2]
[321711964,1712428251390,-500.0,0.00022793,2]
[321711965,1712428251400,-500.0,0.00022793,2]
[321711966,1712428251410,-245000.0,0.00022794,2]
[321711967,1712428251419,-392.4434,0.00022794,2]
[321711968,1712428251429,-1637.78750106,0.00022813,2]
[321711969,1712428251439,-182.43104262,0.00022816,2]
[321711970,1712428251448,-171.86475117,0.00022822,2]
[321711971,1712428251458,-211.68300458,0.00022829,6]
[321711972,1712428251468,-500.0,0.00022869,2]
[321711973,1712428251478,-861.12,0.00022869,2]
[321711974,1712428251487,-537.22,0.00022869,2]
[321711975,1712428251496,-1824.67,0.00022869,2]
[321711976,1712428251507,-1573.75,0.00022869,2]
[321711977,1712428251516,-13536.48042962,0.0002287,2]
[321711978,1712428251526,-1468.94,0.0002288,2]
[321711979,1712428251535,-500.0,0.0002288,2]
[321711980,1712428251545,-485.43,0.0002288,2]
[321711981,1712428251554,-1119.43,0.0002288,2]
[321711982,1712428251564,-2126.61,0.0002288,2]
[321711983,1712428251574,-500.0,0.0002288,2]
[321711984,1712428251583,-500.0,0.0002288,2]
[321711985,1712428251593,-500.0,0.0002288,2]
[321711986,1712428251604,-500.0,0.0002288,2]
[321711987,1712428251613,-606.0,0.00022881,2]
[321711988,1712428251622,-279.0,0.00022881,2]
[321711989,1712428251631,-434.0,0.00022881,2]
[321711990,1712428251640,-805.0,0.00022881,2]
[321711991,1712428251650,-1942.0,0.00022881,2]
[321711992,1712428251659,-1467.0,0.00022881,2]
[321711993,1712428251669,-3033.0,0.00022881,2]
[321711994,1712428251678,-397.0,0.00022881,2]
[321711995,1712428251688,-1140.0,0.00022881,2]
[321711996,1712428251697,-150.0,0.00022881,2]
[321711997,1712428251707,-1632.0,0.00022881,2]
[321711998,1712428251717,-2432.0,0.00022881,2]
[321711999,1712428251726,-354.0,0.00022881,2]
[321712000,1712428251736,-214.0,0.00022881,2]
[321712001,1712428251746,-459.0,0.00022881,2]
[321712002,1712428251756,-2429.0,0.00022881,2]
[321712003,1712428251766,-965.0,0.00022881,2]
[321712004,1712428251776,-5701.0,0.00022881,2]
[321712005,1712428251786,-4788.0,0.00022881,2]
[321712006,1712428251796,-362.6516949,0.00022881,2]
[321712007,1712428251805,-1708.68527016,0.00022887,2]
[321712008,1712428251815,-500.0,0.00022892,2]
[321712009,1712428251825,-2172.87344263,0.00022893,2]
[321712010,1712428251834,-155.0,0.00022893,2]
[321712011,1712428251844,-165.49298639,0.00022893,2]
[321712012,1712428251854,-156.56179884,0.00022893,2]
[321712013,1712428251863,-155.50479854,0.00022893,2]
[321712014,1712428251872,-157.82685606,0.00022893,2]
[321712015,1712428251881,-155.30771812,0.00022893,2]
[321712016,1712428251890,-206.09224907,0.00022893,2]
[321712017,1712428251899,-808.30329148,0.00022893,2]
[321712018,1712428251909,-155.20490834,0.00022893,2]
[321712019,1712428251918,-278.22330649,0.00022893,2]
[321712020,1712428251927,-169.2909977,0.00022893,2]
[321712021,1712428251936,-4710.43501959,0.00022893,2]
[321712022,1712428251946,-261.23037976,0.00022893,2]
[321712023,1712428251955,-8456.94626152,0.00022893,2]
[321712024,1712428251964,-3369.98331049,0.00022893,2]
[321712025,1712428251973,-155.92682685,0.00022893,2]
[321712026,1712428251982,-173.53804021,0.00022893,2]
[321712027,1712428251991,-5528.27738706,0.00022893,2]
[321712028,1712428252000,-644.94085111,0.00022893,2]
[321712029,1712428252013,-485.82894591,0.00022893,2]
[321712030,1712428252022,-254.85978372,0.00022893,2]
[321712031,1712428252031,-231.96521014,0.00022893,2]
[321712032,1712428252039,-356.67775819,0.00022893,2]
[321712033,1712428252049,-155.0,0.00022893,2]
[321712034,1712428252058,-155.0,0.00022893,2]
[321712035,1712428252067,-3854.39454608,0.00022893,2]
[321712036,1712428252076,-155.0,0.00022893,2]
[321712037,1712428252087,-170.68663866,0.00022893,2]
[321712038,1712428252096,-215.3824893,0.00022893,2]
[321712039,1712428252106,-163.87560073,0.00022893,2]
[321712040,1712428252115,-156.81951421,0.00022893,2]
[321712041,1712428252124,-155.20535688,0.00022893,2]
[321712042,1712428252133,-181.08302386,0.00022896,2]
[321712043,1712428252143,-4328.42279804,0.00022897,2]
[321712044,1712428252152,-161.22562357,0.000229,2]
[321712045,1712428252161,-1820.03018738,0.00022909,2]
[321712046,1712428252170,-153.39,0.00022909,2]
[321712047,1712428252180,-943.40701883,0.0002291,2]
[321712048,1712428252189,-500.0,0.00022911,2]
[321712049,1712428252198,-599.64,0.00022911,2]
[321712050,1712428252208,-1825.01,0.00022911,2]
[321712051,1712428252218,-258.31400256,0.00022911,2]
[321712052,1712428252227,-500.0,0.00022911,2]
[321712053,1712428252236,-905.39,0.00022912,2]
[321712054,1712428252245,-677.88,0.00022912,2]
[321712055,1712428252255,-500.0,0.00022912,2]
[321712056,1712428252264,-554.57,0.00022912,2]
[321712057,1712428252273,-500.0,0.00022912,2]
[321712058,1712428252283,-500.0,0.00022912,2]
[321712059,1712428252293,-1694.84,0.00022912,2]
[321712060,1712428252302,-594.14,0.00022912,2]
[321712061,1712428252312,-273.03777461,0.00022912,2]
[321712062,1712428252321,-798.42,0.00022912,2]
[321712063,1712428252330,-1358.79,0.00022912,2]
[321712064,1712428252340,-28507.84383392,0.00022913,2]
[321712065,1712428252349,-28507.84383392,0.00022913,2]
[321712066,1712428252358,-562.77464044,0.00022916,2]
[321712067,1712428252368,-1158.36545088,0.00022916,4]
[321712068,1712428252377,-943.40701883,0.00022919,2]
[321712069,1712428252386,-201.77941796,0.00022919,2]
[321712070,1712428252395,-500.0,0.00022921,2]
[321712071,1712428252405,-861.12,0.00022921,2]
[321712072,1712428252414,-537.22,0.00022921,2]
[321712073,1712428252423,-1824.67,0.00022921,2]
[321712074,1712428252432,-500.0,0.00022921,2]
[321712075,1712428252441,-1573.75,0.00022921,2]
[321712076,1712428252451,-500.0,0.00022921,2]
[321712077,1712428252460,-201.77941796,0.00022921,2]
[321712078,1712428252469,-142054.7837043,0.00022922,2]
[321712079,1712428252478,-28507.84383392,0.00022922,2]
[321712080,1712428252487,-824.03303982,0.00022922,2]
[321712081,1712428252497,-500.0,0.00022924,2]
[321712082,1712428252506,-599.64,0.00022924,2]
[321712083,1712428252515,-1825.01,0.00022924,2]
[321712084,1712428252525,-500.0,0.00022924,2]
[321712085,1712428252534,-905.39,0.00022925,2]
[321712086,1712428252543,-677.88,0.00022925,2]
[321712087,1712428252553,-500.0,0.00022925,2]
[321712088,1712428252562,-554.57,0.00022925,2]
[321712089,1712428252571,-500.0,0.00022925,2]
[321712090,1712428252581,-167.6,0.00022925,2]
[321712091,1712428252590,-500.0,0.00022925,2]
[321712092,1712428252602,-1694.84,0.00022925,2]
[321712093,1712428252611,-500.0,0.00022925,2]
[321712094,1712428252621,-594.14,0.00022925,2]
[321712095,1712428252631,-798.42,0.00022925,2]
[321712096,1712428252640,-1358.79,0.00022925,2]
[321712097,1712428252649,-824.03303982,0.00022926,2]
[321712098,1712428252658,-142054.7837043,0.00022926,2]
[321712099,1712428252668,-1820.03018738,0.00022929,2]
[321712100,1712428252677,-824.03303982,0.0002293,2]
[321712101,1712428252686,-201.77941796,0.00022933,2]
[321712102,1712428252696,-248.9,0.00022935,2]
[321712103,1712428252705,-943.40701883,0.00022936,2]
[321712104,1712428252714,-201.77941796,0.00022936,2]
[321712105,1712428252723,-1820.03018738,0.00022937,2]
[321712106,1712428252733,-861.12,0.00022938,2]
[321712107,1712428252742,-905.39,0.00022938,2]
[321712108,1712428252752,-677.88,0.00022938,2]
[321712109,1712428252762,-500.0,0.00022938,2]
[321712110,1712428252771,-554.57,0.00022938,2]
[321712111,1712428252781,-537.22,0.00022938,2]
[321712112,1712428252790,-500.0,0.00022938,2]
[321712113,1712428252798,-500.0,0.00022938,2]
[321712114,1712428252811,-1824.67,0.00022938,2]
[321712115,1712428252820,-599.64,0.00022938,2]
[321712116,1712428252830,-500.0,0.00022938,2]
[321712117,1712428252840,-1694.84,0.00022938,2]
[321712118,1712428252849,-1573.75,0.00022938,2]
[321712119,1712428252858,-1825.01,0.00022938,2]
[321712120,1712428252867,-594.14,0.00022938,2]
[321712121,1712428252877,-798.42,0.00022938,2]
[321712122,1712428252924,-1358.79,0.00022938,2]
[321712123,1712428252934,-500.0,0.00022938,2]
[321712124,1712428252942,-142054.7837043,0.00022939,2]
[321712125,1712428252954,-861.12,0.0002294,2]
[321712126,1712428252963,-537.22,0.0002294,2]
[321712127,1712428252972,-1824.67,0.0002294,2]
[321712128,1712428252981,-1573.75,0.0002294,2]
[321712129,1712428252990,-500.0,0.0002294,2]
[321712130,1712428252999,-142054.7837043,0.0002294,2]
[321712131,1712428253011,-824.03303982,0.0002294,2]
[321712132,1712428253020,-28507.84383392,0.00022944,2]
[321712133,1712428253029,-500.0,0.00022949,2]
[321712134,1712428253038,-599.64,0.00022949,2]
[321712135,1712428253047,-1825.01,0.00022949,2]
[321712136,1712428253058,-388.18413566,0.00022949,2]
[321712137,1712428253066,-201.77941796,0.0002295,2]
[321712138,1712428253076,-1820.03018738,0.0002295,2]
[321712139,1712428253085,-201.77941796,0.0002295,2]
[321712140,1712428253095,-905.39,0.00022951,2]
[321712141,1712428253104,-677.88,0.00022951,2]
[321712142,1712428253114,-500.0,0.00022951,2]
[321712143,1712428253123,-554.57,0.00022951,2]
[321712144,1712428253132,-500.0,0.00022951,2]
[321712145,1712428253142,-500.0,0.00022951,2]
[321712146,1712428253152,-1694.84,0.00022951,2]
[321712147,1712428253162,-500.0,0.00022951,2]
[321712148,1712428253171,-594.14,0.00022951,2]
[321712149,1712428253182,-798.42,0.00022951,2]
[321712150,1712428253192,-1358.79,0.00022951,2]
[321712151,1712428253202,-1820.03018738,0.00022952,2]
[321712152,1712428253211,-142054.7837043,0.00022952,2]
[321712153,1712428253222,-861.12,0.00022952,2]
[321712154,1712428253233,-905.39,0.00022952,2]
[321712155,1712428253242,-677.88,0.00022952,2]
[321712156,1712428253251,-500.0,0.00022952,2]
[321712157,1712428253262,-554.57,0.00022952,2]
[321712158,1712428253270,-537.22,0.00022952,2]
[321712159,1712428253280,-500.0,0.00022952,2]
[321712160,1712428253289,-500.0,0.00022952,2]
[321712161,1712428253299,-1824.67,0.00022952,2]
[321712162,1712428253310,-599.64,0.00022952,2]
[321712163,1712428253321,-500.0,0.00022952,2]
[321712164,1712428253330,-1694.84,0.00022952,2]
[321712165,1712428253340,-1573.75,0.00022952,2]
[321712166,1712428253349,-1825.01,0.00022952,2]
[321712167,1712428253360,-594.14,0.00022952,2]
[321712168,1712428253370,-798.42,0.00022952,2]
[321712169,1712428253380,-1358.79,0.00022952,2]
[321712170,1712428253389,-201.77941796,0.00022952,2]
[321712171,1712428253398,-142054.7837043,0.00022953,2]
[321712172,1712428253407,-861.12,0.00022955,2]
[321712173,1712428253416,-537.22,0.00022955,2]
[321712174,1712428253426,-1824.67,0.00022955,2]
[321712175,1712428253435,-1573.75,0.00022955,2]